Cogmind - Beta 16 @@@ ROGUE MODE // 2025.11.15 @ 23:40:33 // Winter2019/RPGLIKE Player: Jaegerpls Result: Destroyed by QQ-XSK(R) with Subdweller Machine Gun Performance ------------- Evolutions (0) 0 Regions Visited (2) 400 Robots Destroyed (39) 195 Value Destroyed (889) 889 Prototype IDs (14) 280 Alien Tech Used (0) 0 Bonus (0) 0 TOTAL SCORE: 1764 Bonus ------- None Cogmind --------- Core Integrity 0/600 Matter 300/300 Energy 265/265 System Corruption 4% Temperature Cool (0) Movement Walking (90) Location -10/Subcaves Parts ------- > --- POWER (1) -------- Improved Ion Engine > --- PROPULSION (3+3) - Arachnoskeleton > --- UTILITY (4) ------ Machine Analyzer Signal Interpreter Improved Terrain Scanner Hacking Suite > --- WEAPON (2) ------- Maul Maul > --- INVENTORY (2) ---- Datajack Maul Peak State ------------ > --- POWER ------------ Improved Ion Engine > --- PROPULSION ------- Arachnoskeleton > --- UTILITY ---------- Machine Analyzer Signal Interpreter Improved Terrain Scanner Hacking Suite > --- WEAPON ----------- Maul Maul > --- INVENTORY -------- Datajack Maul [Rating: 37] Favorites ----------- Power Light Ion Engine Engine Light Ion Engine Propulsion Hover Unit Leg Arachnoskeleton Wheel Compact Wheel Hover Unit Hover Unit Utility Improved Terrain Scanner Device Improved Terrain Scanner Processor Signal Interpreter Hackware Hacking Suite Weapon Maul Energy Gun Medium Laser Ballistic Gun Assault Rifle Ballistic Cannon Light Cannon Impact Weapon Maul Slashing Weapon Mining Claw Special Melee Weapon Datajack Build | -11 -10 -10 ------- Run | Yrd Mat Sub Slots Evolved 6 | 4 1 1 Power . | . . . Propulsion 2 | 1 1 . Utility 3 | 2 . 1 Weapon 1 | 1 . . Parts Attached 22 | 6 14 2 Power 4 | 1 3 . Engine 4 | 1 3 . Core . | . . . Reactor . | . . . Propulsion 6 | 2 3 1 Treads . | . . . Leg 1 | . . 1 Wheel 2 | 2 . . Hover 3 | . 3 . Flight . | . . . Utility 4 | 1 2 1 Device 1 | 1 . . Storage . | . . . Processor 2 | . 1 1 Hackware 1 | . 1 . Protection . | . . . Artifact . | . . . Weapon 8 | 2 6 . Energy Gun 1 | 1 . . Energy Cannon . | . . . Ballistic Gun 1 | 1 . . Ballistic Cannon 1 | . 1 . Launcher . | . . . Special Weapon . | . . . Impact Weapon 2 | . 2 . Slashing Weapon 2 | . 2 . Piercing Weapon . | . . . Special Melee Weapon 1 | . 1 . Unidentified Prototypes . | . . . Parts Lost 4 | . 1 3 Power . | . . . Propulsion 3 | . . 3 Utility . | . . . Weapon 1 | . 1 . Highest Loss Streak 3 | . 1 3 To Critical Strikes . | . . . Average Backups 1 | . . 2 Power . | . . . Propulsion . | . . . Utility . | . . . Weapon . | . . 1 Tool/Special . | . . . Unused Backups 4 | . 2 2 Power . | . . . Propulsion 1 | . 1 . Utility . | . . . Weapon 2 | . 1 1 Tool/Special 1 | . . 1 Average Slot Usage (%) 84 | . 86 82 Engine 10 | . 11 9 Wheel 4 | . 8 . Hover 14 | . 12 16 Device 10 | . 11 9 Processor 11 | . 9 15 Hackware 8 | . 7 9 Energy Gun 1 | . 3 . Ballistic Gun 1 | . 2 . Impact Weapon 12 | . 7 18 Slashing Weapon 4 | . 7 . Peak Build Rating 37 | 8 16 37 Average Rating 15 | 5 11 24 On Entrance 8 | . 8 16 Avg Prop Armor Cover (%) . | . . . Naked Turns . | . . . Heaviest Build 14 | 10 14 14 Greatest Support 55 | 32 32 55 Greatest Overweight (x) 1 | . 1 1 Average Overweight (x) . | . . . Largest Inventory Capacity 2 | 1 2 2 Average Capacity 1 | 1 1 2 Most Carried 2 | . 2 2 Average Carried 1 | . . 2 Final Capacity 2 | 1 2 2 Final Carried 2 | . 2 2 Class Distribution -------------------- 39% | Scavenger-Gladiator 23% | Mutant 18% | Gladiator 9% | Scavenger-Scout 8% | Scavenger-Mutant Dominant Class ---------------- Scavenger-Gladiator | -10/Materials Gladiator | -10/Subcaves Resources | -11 -10 -10 ----------- Run | Yrd Mat Sub Matter Collected 504 | 275 195 34 Remotely . | . . . Salvage Created 983 | 145 764 74 Parts 66 | 14 45 7 Haulers Intercepted 2 | . 2 . Recyclers Shooed 1 | . 1 . Parts Field Recycled . | . . . Retrieved Matter . | . . . Parts Self-Destructed 8 | . . 8 Prevented . | . . . Parts Restored . | . . . Kills | -11 -10 -10 ------- Run | Yrd Mat Sub Combat Hostiles Destroyed 24 | . 15 9 Melee 16 | . 11 5 Guns 3 | . 3 . Classes Destroyed 9 | 2 5 2 Tunneler 5 | 5 . . Hauler 2 | . 2 . Recycler 4 | 1 3 . Operator 2 | . 2 . Watcher 2 | . 2 . Swarmer 6 | . 3 3 Grunt 12 | . 12 . Sentry 1 | . . 1 Subdweller 5 | . . 5 Best Kill Streak 6 | 6 3 3 Combat Bots Only 3 | . 3 3 Max Kills in Single Turn 1 | 1 1 1 Gunslinging . | . . . Exploded . | . . . Melee 1 | . 1 1 Uniques/NPCs Destroyed . | . . . Combat | -11 -10 -10 -------- Run | Yrd Mat Sub Hostile Shots Fired 157 | . 76 81 Missed 47 | . 20 27 Hits 110 | . 56 54 Projectile 110 | . 56 54 Critical Strikes 1 | . 1 . Damage Taken 1600 | . 668 932 Core 1333 | . 563 770 Absorbed by Shields . | . . . Redirected to Core 901 | . 341 560 Core Remaining (%) 100 | 100 . . Volleys Fired 20 | 9 11 . Largest 2 | 2 2 . Hottest 70 | 70 70 . Shots Fired 40 | 18 22 . Gun 40 | 18 22 . Cannon . | . . . Launcher . | . . . Special . | . . . Kinetic 20 | 9 11 . Thermal 20 | 9 11 . Explosive . | . . . Electromagnetic . | . . . Robot Hit Streak 9 | 9 6 . Robot Miss Streak 3 | 1 3 . Penetration Max . | . . . Secondary Targets 1 | . 1 . Max Gunslinging Chain 1 | . 1 . Shots Hit Robots 98 | 12 52 34 Core Hits 35 | 7 23 5 Critical Kills 1 | . 1 . Critical Parts Destroyed 7 | . 3 4 Critical Strikes 12 | 2 4 6 Burn 2 | 2 . . Smash 10 | . 4 6 Melee Attacks 113 | . 65 48 Impact 70 | . 22 48 Slashing 43 | . 43 . Piercing . | . . . Sneak Attacks 11 | . 11 . Combat Hostiles . | . . . Follow-up Attacks 13 | . 5 8 Damage Inflicted 2913 | 149 1556 1208 Guns 325 | 149 176 . Cannons . | . . . Explosions . | . . . Melee 2588 | . 1380 1208 Ramming . | . . . Kinetic 137 | 49 88 . Thermal 188 | 100 88 . Explosive . | . . . Electromagnetic . | . . . Impact 1801 | . 593 1208 Slashing 787 | . 787 . Piercing . | . . . Highest Corruption 4 | . 4 4 Average Corruption 3 | . 3 4 Corruption Purged . | . . . Corruption Blocked . | . . . Effects 20 | . 5 15 Message Errors 6 | . 1 5 Matter Fused 3 | . . 3 Heat Flow Errors 3 | . 1 2 Energy Discharges 3 | . 1 2 Data Loss (minor) 4 | . 1 3 Alerts 1 | . 1 . Overload Shots . | . . . Overflow Damage 545 | . 281 264 Projectiles . | . . . Explosions . | . . . Melee 545 | . 281 264 Knockbacks 10 | . 1 9 Impact 9 | . 1 8 Kinetic . | . . . Secondary 1 | . . 1 Self-Inflicted Damage . | . . . Shots . | . . . Rammed . | . . . Targets Rammed . | . . . Kicked . | . . . Crushed . | . . . Highest Temperature 224 | . 178 224 Average Temperature 62 | . 43 113 Received Heat Transfer 510 | . 360 150 Siege Activations . | . . . Martial Activations . | . . . Shielding Activations . | . . . Robots Disrupted . | . . . Combat Hostiles . | . . . Robots Corrupted 6 | . 2 4 Combat Hostiles 5 | . 1 4 Parts Fried 7 | . 3 4 Impact Corruptions 18 | . 7 11 Robots Melted . | . . . Combat Hostiles . | . . . Parts Melted 1 | . 1 . Heat Transferred 703 | 444 259 . Parts Sabotaged . | . . . Parts Stolen . | . . . Parts Stripped . | . . . Power Chain Reactions . | . . . Alert | -11 -10 -10 ------- Run | Yrd Mat Sub Maximum Alert Level . | . . . Low Security (%) 100 | 100 100 . Level 1 . | . . . Level 2 . | . . . Level 3 . | . . . Level 4 . | . . . Level 5 . | . . . High Security . | . . . Max Security . | . . . Peak Influence 163 | 15 163 . Initial . | . . . Average 44 | 4 48 . Influence Increases 645 | 30 525 90 Destroy 0b10 Robot/C 380 | . 300 80 Destroy 0b10 Robot/NC 75 | 30 45 . Destroy Leader 88 | . 78 10 Successful Hack 25 | . 25 . Disable Machine 15 | . 15 . Destroy Structure 2 | . 2 . Lose Combat Pursuer 60 | . 60 . Influence Decreases 645 | 30 382 233 Entered New Map 70 | . . 70 Time Decay 526 | 30 333 163 Lost Part 10 | . 10 . Purge Threat 39 | . 39 . Squads Dispatched 3 | . 3 . Investigation 1 | . 1 . Extermination . | . . . Reinforcement 2 | . 2 . Assault . | . . . Garrison . | . . . Intercept . | . . . Searches Triggered . | . . . Construction Impeded . | . . . Haulers Reinforced . | . . . Active Scanning Responses . | . . . Cargo Convoy Interrupts . | . . . Stealth | -11 -10 -10 --------- Run | Yrd Mat Sub Distress Signals 1 | . 1 . Communications Jammed . | . . . Distress Signals . | . . . Times Spotted 41 | . 31 10 Peak Tracking Total 3 | . 3 3 Tactical Retreats 3 | . 3 . Traps | -11 -10 -10 ------- Run | Yrd Mat Sub Traps Triggered 3 | . 3 . Indirectly . | . . . Trap Hack Attempts . | . . . Triggered . | . . . Disarmed 8 | . 8 . Reprogrammed . | . . . Reused . | . . . Traps Extracted . | . . . Installed . | . . . Triggered . | . . . Machines | -11 -10 -10 ---------- Run | Yrd Mat Sub Machines Disabled 2 | . 1 1 Max in Single Turn 1 | . 1 1 Machines Repaired . | . . . Machines Dismantled . | . . . Machines Sabotaged . | . . . Overloaded Fab Kills . | . . . Hacking | -11 -10 -10 --------- Run | Yrd Mat Sub Machines Accessed 8 | . 7 1 Terminals 6 | . 6 . Fabricators . | . . . Repair Stations . | . . . Recycling Units 1 | . 1 . Scanalyzers . | . . . Garrison Access . | . . . Total Hacks 41 | . 32 9 Successful 32 | . 23 9 Failed 8 | . 8 . Catastrophic 1 | . 1 . Database Lockouts 1 | . 1 . Manual 19 | . 19 . Terminals 26 | . 26 . Fabricators . | . . . Repair Stations . | . . . Recycling Units 6 | . 6 . Scanalyzers . | . . . Garrison Access . | . . . Terminal Hacks 16 | . 7 9 Record 8 | . . 8 Robot Analysis 1 | . 1 . Prototype ID Bank 1 | . 1 . Unreport Threat 1 | . 1 . Locate Traps 1 | . 1 . Disarm Traps 2 | . 2 . Zone Layout 1 | . 1 . Proto ID Catalog 1 | . . 1 Fabricator Hacks . | . . . Repair Station Hacks . | . . . Recycling Unit Hacks 2 | . 2 . Report Inventory 1 | . 1 . Retrieve Components 1 | . 1 . Scanalyzer . | . . . Garrison Access Hacks . | . . . Unauthorized Hacks 14 | . 14 . Terminals 13 | . 13 . Track 1 | . 1 . Botnet 4 | . 4 . Disrupt 1 | . 1 . Operators 1 | . 1 . Skim 6 | . 6 . Fabricators . | . . . Repair Stations . | . . . Recycling Units 1 | . 1 . Reject 1 | . 1 . Scanalyzers . | . . . Garrison Access . | . . . Data Cores Recovered . | . . . Used . | . . . Hacking Detections 5 | . 5 . Full Trace Events . | . . . Feedback Events . | . . . Feedback Blocked . | . . . Robot Schematics Acquired . | . . . Robots Built . | . . . Authchips . | . . . Time . | . . . Total Robot Build Rating . | . . . Part Schematics Acquired . | . . . Parts Built . | . . . Authchips . | . . . Time . | . . . Total Part Build Rating . | . . . Part Studies Acquired . | . . . Parts Repaired . | . . . Time . | . . . Parts Recycled . | . . . Recycled Matter . | . . . Retrieved Matter . | . . . Retrieved Components 10 | . 10 . Parts Scanalyzed . | . . . Part Schematics Acquired . | . . . Parts Damaged . | . . . Bothacking | -11 -10 -10 ------------ Run | Yrd Mat Sub Used RIF Installer . | . . . Robots Hacked . | . . . Non-combat . | . . . Combat . | . . . Robot Hacks Applied . | . . . Relay Couplers Released . | . . . Fabnet Peak Effective % . | . . . Robots Rewired . | . . . Allies Hacked . | . . . Hacks Repelled . | . . . Allies | -11 -10 -10 -------- Run | Yrd Mat Sub Total Allies . | . . . Largest Group . | . . . Highest-Rated Group . | . . . Highest-Rated Ally . | . . . Total Orders . | . . . Ally Attacks . | . . . Total Damage . | . . . Kills . | . . . Allies Corrupted . | . . . Allies Melted . | . . . Intel | -11 -10 -10 ------- Run | Yrd Mat Sub Active Infowar (turns) 1885 | 50 1115 720 Terrain 1885 | 50 1115 720 Machine Analysis 541 | . . 541 Robot Analysis Total 1 | . 1 . Derelict Logs Recovered 1 | . . 1 Drone Launches . | . . . Drone Recoveries . | . . . Exploration | -11 -10 -10 ------------- Run | Yrd Mat Sub Turns Passed 1963 | 128 1115 720 Spaces Moved 1397 | 51 864 482 Core 73 | 1 . 72 Treads . | . . . Legs 170 | . . 170 Wheels 342 | 50 292 . Hover 812 | . 572 240 Flight . | . . . Fastest Speed 50 | 50 52 52 Average Speed 82 | 99 87 72 Slowest Speed 120 | 100 120 100 Overloaded Moves . | . . . Propulsion Burnouts . | . . . Robots Hopped . | . . . Potential Cave-ins . | . . . Cave-ins Triggered . | . . . Exploration Rate (%) 38 | 3 98 15 Regions Visited 2 Branch Regions 1 Pre-discovered Areas . | . . . Known Exits Taken 1 | . 1 . Unknown Exits Taken 1 | 1 . . Scrap Searched 2 | . . 2 Spaces Dug 2 | . 2 . Terrain Destroyed 2 | . 2 . Melee 2 | . 2 . Projectile . | . . . AOE . | . . . Terrain Rammed . | . . . Walls Destroyed . | . . . Machines Disabled . | . . . Actions | -11 -10 -10 --------- Run | Yrd Mat Sub Total 1954 | 107 1078 769 Wait 359 | 42 93 224 Move 1395 | 50 863 482 Hop . | . . . Pick Up 6 | . 6 . Fast Attach 18 | 6 10 2 Attach 2 | . 2 . Detach 1 | . 1 . Swap 3 | . 3 . Drop 13 | . 13 . Fire 20 | 9 11 . Melee 99 | . 59 40 Ram . | . . . Kick . | . . . Crush . | . . . Escape Stasis . | . . . Rewire . | . . . Trap . | . . . Miscellaneous 38 | . 17 21 Route ------- -11/Scrapyard -10/Materials (discovered 6 exits: *Mat x3 / [*Min x2] / *Sub) -10/Subcaves (discovered 1 exit: *Mat) History --------- Turn | Location | Event 1 | -11/Scrapyard | Upgraded with Propulsion slot (x1) 1 | -11/Scrapyard | Upgraded with Utility slot (x2) 1 | -11/Scrapyard | Upgraded with Weapon slot (x1) 21 | -11/Scrapyard | Discovered new exit (range 15) 129 | -11/Scrapyard | Entered Materials 230 | -10/Materials | Discovered new exit (range 7) 306 | -10/Materials | Build established: Mutant 322 | -10/Materials | Discovered new exit (range 10) 402 | -10/Materials | Discovered new exit (range 16) 667 | -10/Materials | Discovered new exit (range 14) 673 | -10/Materials | Discovered new exit (range 5) 736 | -10/Materials | Central database locked down 954 | -10/Materials | Build established: Scavenger-Gladiator 1024 | -10/Materials | Reached level 2 1034 | -10/Materials | Upgraded with Propulsion slot (x1) 1099 | -10/Materials | Discovered new exit (range 16) 1227 | -10/Materials | Identified exit to Materials 1244 | -10/Materials | Identified exit to Subcaves 1244 | -10/Materials | Entered Subcaves 1245 | -10/Subcaves | Approached by a straggling Scientist 1258 | -10/Subcaves | Learned location of 2 exits from Materials 1341 | -10/Subcaves | Core integrity fell below 50% 1379 | -10/Subcaves | Reached level 3 1410 | -10/Subcaves | Upgraded with Utility slot (x1) 1529 | -10/Subcaves | Visited 4L-MR0's lab 1614 | -10/Subcaves | Core integrity fell below 20% 1642 | -10/Subcaves | Lost 3 parts (3n) 1707 | -10/Subcaves | Found Arachnoskeleton 1708 | -10/Subcaves | Attached Arachnoskeleton, gained temporary slots: Propulsion x3 1816 | -10/Subcaves | Discovered new exit (range 13) 1827 | -10/Subcaves | Identified exit to Materials 1899 | -10/Subcaves | Build established: Gladiator 1964 | -10/Subcaves | Destroyed by QQ-XSK(R) with Subdweller Machine Gun Last Messages --------------- 01874_ Y-45 Defender suffers critical hit (Smash). 01874_ Destroyed Hvy. Assault Rifle. 01874_ Y-45 Defender system corrupted by crushing effect. 01877_ Destroyed Heat Sink. 01877_ Y-45 Defender system corrupted by crushing effect. 01878_ Y-45 Defender system terminally corrupted. 01878_ Beam Rifle fried. 01880_ Acquired 8 matter. 01886_ System corrupted: Heat flow error (+265). 01956_ Maul follow-up attack on 3Z-W9H(R). 01956_ 3Z-W9H(R) knocked back. 01958_ System corrupted: Component data lost. 01959_ 3Z-W9H(R) suffers critical hit (Smash). 01959_ Destroyed Sub. Monowheel. 01959_ 3Z-W9H(R) system corrupted by crushing effect. 01960_ 3Z-W9H(R) system terminally corrupted. 01960_ Disposable Heat Sink fried. 01960_ Subatomizers dissect the Corrupted Sub. Power Source. [Achievement: Back For More] [Achievement: I Think I Know What's Going On] Map ----- +----------------------------------------------------+ | ???????????????????????????###???????????????????? | | ?????????????????? #?????# ????????????????? | | ???????????????? ?#?#? ???????????????? | | ??????????????? ??? #???????????????? | | ???????????????? #??? #??#????????????? | | ????????????????? #?# ?#?????????????? | | ?????????????????? #?# ?????????????? ?? | | ????????????#?????# ?## ??? ??????# ? ? ?# | | ????????????##?#??# ## ? ?? #?? ##???? #? | | ???????????###?#?## ? ? #? ? ## ?# | | ??????????#####?### ? ? ## #? ??## | | ????????#?#?#? ? ?#?? ### ?### | | ????????####?# ## ####??##? ?#### #### | | ???????###?### ?#### " #####?## ## ######### | | ?????#######?# ####""" ########### ########## | | ??????######### ## """"" ########## "########## | | ??#?#####?##### """ ""####### "######### | | ?????##?######## ### """####### ######### | | ??################ #### ##""############## ## | | ?##??############## ### ###""############# # | | ?#?##################### ####""########""### # | | #?##################### ##""""###### """" # | | ??#?############# ##### ## """"#"###" ## # | | ################ #### ## """"""""" ### ## | | ??############## ## ## """ """" "### ### | | ?#?############# R@### ## "" ### ### | | ?############ ### ###""####"""" "# ## | | ??######### % ### ### " "" ## ### | | ########## #### #### ## "" ""###" & | | ?####?###### ## #### "### "### & | | ???###### ## ###### """ "# ## | | ?#?###?## ## ######## """"""" " | | ?##?##### ### < ## # # | | ##?#??### ### "" "" | | ?###?#### ### ## "" | | ?#?############## ## ## # ##### # ## | | ??############################################### | | ???#?############################################# | | ???####?########################################## | | ???##############################??############### | | ????#######?###################################### | | ?????#################?########?################## | | ??????####?#########?#############?#?############# | | ??????##########?###############?#??############## | | ????????#####?#############??##???#?##?###?#?#?### | | ??????????############?##?######??#????????###?##? | | ?????????????##?#######??###??#####?####?????#?#?? | | ??????????????#??#######??###?###?##?#??#????????? | | ?????????????????#????????#???#?#????????????????? | | ???????????????????#????????##????????#??????????? | +----------------------------------------------------+ Best States ------------- Heat Dissipation 31 Energy Generation 12 Energy Capacity 265 Matter Stores 300 Matter Capacity 300 Sight Range 17 Robot Scan Range 8 Terrain Scan Range 16 Terrain Scan Density 410 Evasion (%) 57 Offensive Hacking 10 Item Schematics ----------------- None Robot Schematics ------------------ None Fabricated ------------ Nothing Repaired ---------- Nothing Studied --------- None Alien Tech Used ----------------- None Achievements -------------- Back For More I Think I Know What's Going On Challenges ------------ None RPGLIKE | -11 -10 -10 --------- Run | Yrd Mat Sub Levels Raised 2 | . 1 1 XP Earned 6375 | 3000 1925 1450 XP Spent 5990 | 2995 1500 1495 Upgrades 19 | 11 4 4 Propulsion Slot 2 | 1 1 . Utility Slot 3 | 2 . 1 Weapon Slot 1 | 1 . . Heat Dissipation 1 | 1 . . Mass Support 1 | . 1 . Inventory Capacity 2 | 1 1 . Sight Range 1 | . . 1 Sensor Range 4 | 2 1 1 Terrain Scan Density 4 | 3 . 1 Protomatter Created 373 | . 192 181 Integrity Restored 759 | . 315 444 Core 730 | . 286 444 Parts 29 | . 29 . Protomatter Decayed 159 | . 84 75 Game ------ Seed ThrowingBarrageThermoblaster Manual? 0 Play Time 00:19:20 Cumulative 54.6 hours Start 2025.11.15 @ 23:19:42 End 2025.11.15 @ 23:40:33 Sessions 1 Manual Loads 0 Difficulty Rogue Special Mode Winter2019/RPGLIKE Game No. 51 Rogue 51 Adventurer 0 Explorer 0 Win Type - Total 0 Types 0/0/0/0/0/0/0/0/0/0 Lore% 50 Gallery% 34 Achievement% 32 Wizard Run 0 Options --------- Layout 0 ASCII 0 Keyboard 0 Movement Mouse Keybinds 0 Fullscreen 2 Font 24/Smallcaps Map View 76x50 Zoom Use 0% Tactical HUD 1 Map Filters NONE Filters NONE Steam 1 RUN: 44743315-665f-4472-806f-b933a60f23a2